Cogmind - Beta 14 *** ADVENTURER MODE // 2024.08.19 @ 18:23:22 Player: Bob Result: Self-destructed Performance ------------- Evolutions (1) 500 Regions Visited (3) 600 Robots Destroyed (16) 80 Value Destroyed (290) 290 Prototype IDs (0) 0 Alien Tech Used (0) 0 Bonus (135) 135 TOTAL SCORE: 1605 Bonus ------- Follower Combat Kills 135 Cogmind --------- Core Integrity 400/400 Matter 260/300 Energy 28/100 System Corruption 0% Temperature Cool (0) Movement Treading (160) Location -9/Materials Parts ------- > --- POWER (1) -------- (None) > --- PROPULSION (2) --- Light Treads Light Treads > --- UTILITY (4) ------ Improved Heat Sink Improved Heat Sink Large Storage Unit Signal Interpreter > --- WEAPON (2) ------- Beam Cannon Assault Rifle > --- INVENTORY (15) --- Light Treads Experimental Sensor Array Targeting Computer Beam Cannon Beam Cannon Light Cannon Mining Laser Mace Mace Mining Claw Peak State ------------ > --- POWER ------------ (None) > --- PROPULSION ------- Light Treads Light Treads > --- UTILITY ---------- Improved Heat Sink Improved Heat Sink Large Storage Unit Signal Interpreter > --- WEAPON ----------- Assault Rifle Assault Rifle > --- INVENTORY -------- Light Treads Experimental Sensor Array Targeting Computer Beam Cannon Beam Cannon Beam Cannon Light Cannon Mining Laser Mace Mace Mining Claw [Rating: 14] Favorites ----------- Power Ion Engine Engine Ion Engine Propulsion Light Treads Treads Light Treads Utility Large Storage Unit Device Improved Heat Sink Storage Large Storage Unit Processor Signal Interpreter Weapon Assault Rifle Energy Cannon Beam Cannon Ballistic Gun Assault Rifle Build | -11 -10 -10 -9 ------- Run | Yrd Mat Min Mat Slots Evolved 2 | . . . 2 Power . | . . . . Propulsion . | . . . . Utility 2 | . . . 2 Weapon . | . . . . Parts Attached 15 | 6 3 2 4 Power 1 | 1 . . . Engine 1 | 1 . . . Core . | . . . . Reactor . | . . . . Propulsion 4 | 2 . 2 . Treads 4 | 2 . 2 . Leg . | . . . . Wheel . | . . . . Hover . | . . . . Flight . | . . . . Utility 6 | 1 3 . 2 Device 3 | . 1 . 2 Storage 2 | 1 1 . . Processor 1 | . 1 . . Hackware . | . . . . Protection . | . . . . Artifact . | . . . . Weapon 4 | 2 . . 2 Energy Gun . | . . . . Energy Cannon 2 | . . . 2 Ballistic Gun 2 | 2 . . . Ballistic Cannon . | . . . . Launcher . | . . . . Special Weapon . | . . . . Impact Weapon . | . . . . Slashing Weapon . | . . . . Piercing Weapon . | . . . . Special Melee Weapon . | . . . . Unidentified Prototypes . | . . . . Parts Lost 1 | . . 1 . Power 1 | . . 1 . Propulsion . | . . . . Utility . | . . . . Weapon . | . . . . Highest Loss Streak 1 | . . 1 . To Critical Strikes . | . . . . Average Slot Usage (%) 91 | . 93 97 66 Engine 11 | . 14 12 . Treads 27 | . 28 28 22 Device 2 | . 5 . . Storage 13 | . 14 14 11 Processor 8 | . 2 14 11 Ballistic Gun 27 | . 28 28 22 Peak Build Rating 14 | 6 10 9 14 Average Rating 7 | 4 7 8 8 On Entrance 5 | . 6 8 8 Naked Turns . | . . . . Heaviest Build 30 | 14 30 29 24 Greatest Support 40 | 40 40 40 40 Greatest Overweight (x) . | . . . . Average Overweight (x) . | . . . . Largest Inventory Capacity 15 | 8 15 15 15 Average Capacity 13 | 7 12 15 15 Most Carried 14 | 5 11 14 13 Average Carried 9 | . 5 12 12 Final Capacity 15 | 8 15 15 15 Final Carried 12 | . 11 12 10 Class Distribution -------------------- 100% | Mutant Dominant Class ---------------- Mutant | -10/Materials Mutant | -10/Mines Mutant | -9/Materials Resources | -11 -10 -10 -9 ----------- Run | Yrd Mat Min Mat Matter Collected 533 | 179 276 58 20 Remotely . | . . . . Salvage Created 410 | . 293 117 . Parts 35 | . 27 8 . Haulers Intercepted 2 | . 2 . . Recyclers Shooed . | . . . . Parts Field Recycled . | . . . . Retrieved Matter . | . . . . Parts Self-Destructed . | . . . . Prevented . | . . . . Kills | -11 -10 -10 -9 ------- Run | Yrd Mat Min Mat Combat Hostiles Destroyed 14 | . 9 5 . Guns 14 | . 9 5 . Classes Destroyed 3 | . 3 . . Hauler 2 | . 2 . . Swarmer 9 | . 6 3 . Grunt 5 | . 3 2 . Best Kill Streak 6 | . 6 3 . Combat Bots Only 4 | . 4 3 . Max Kills in Single Turn 2 | . 2 1 . Gunslinging 1 | . 1 . . Exploded . | . . . . Melee . | . . . . Uniques/NPCs Destroyed . | . . . . Combat | -11 -10 -10 -9 -------- Run | Yrd Mat Min Mat Hostile Shots Fired 71 | . 50 15 6 Missed 19 | . 16 2 1 Damage Taken 442 | . 256 111 75 Core 70 | . 51 19 . Absorbed by Shields . | . . . . Ignored by Resistances 138 | . 83 33 22 Core Remaining (%) 86 | 100 . 72 . Volleys Fired 38 | . 28 10 . Largest 2 | . 2 2 . Hottest 40 | . 40 40 . Shots Fired 76 | . 56 20 . Gun 76 | . 56 20 . Cannon . | . . . . Launcher . | . . . . Special . | . . . . Kinetic 76 | . 56 20 . Thermal . | . . . . Explosive . | . . . . Electromagnetic . | . . . . Robot Hit Streak 14 | . 14 8 . Robot Miss Streak 2 | . 2 2 . Penetration Max . | . . . . Secondary Targets 2 | . 2 . . Max Gunslinging Chain 1 | . 1 . . Shots Hit Robots 56 | . 41 15 . Core Hits 25 | . 17 8 . Critical Kills . | . . . . Critical Parts Destroyed . | . . . . Critical Strikes . | . . . . Melee Attacks . | . . . . Impact . | . . . . Slashing . | . . . . Piercing . | . . . . Sneak Attacks . | . . . . Combat Hostiles . | . . . . Follow-up Attacks . | . . . . Damage Inflicted 698 | . 517 181 . Guns 698 | . 517 181 . Cannons . | . . . . Explosions . | . . . . Melee . | . . . . Ramming . | . . . . Kinetic 698 | . 517 181 . Thermal . | . . . . Explosive . | . . . . Electromagnetic . | . . . . Impact . | . . . . Slashing . | . . . . Piercing . | . . . . Highest Corruption . | . . . . Average Corruption . | . . . . Corruption Purged . | . . . . Corruption Blocked . | . . . . Overload Shots . | . . . . Overflow Damage . | . . . . Projectiles . | . . . . Explosions . | . . . . Melee . | . . . . Knockbacks . | . . . . Impact . | . . . . Kinetic . | . . . . Secondary . | . . . . Self-Inflicted Damage . | . . . . Shots . | . . . . Rammed . | . . . . Targets Rammed . | . . . . Kicked . | . . . . Crushed . | . . . . Highest Temperature 20 | . 20 2 . Average Temperature 5 | . 6 2 . Received Heat Transfer 168 | . 96 42 30 Siege Activations . | . . . . Robots Corrupted . | . . . . Combat Hostiles . | . . . . Parts Fried . | . . . . Impact Corruptions . | . . . . Robots Melted . | . . . . Combat Hostiles . | . . . . Parts Melted . | . . . . Heat Transferred . | . . . . Parts Sabotaged . | . . . . Parts Stolen . | . . . . Parts Stripped . | . . . . Power Chain Reactions . | . . . . Alert | -11 -10 -10 -9 ------- Run | Yrd Mat Min Mat Peak Influence 149 | . 149 110 111 Initial 48 | . . 48 36 Average 60 | . 89 44 39 Maximum Alert Level . | . . . . Low Security (%) 100 | 100 100 100 100 Level 1 . | . . . . Level 2 . | . . . . Level 3 . | . . . . Level 4 . | . . . . Level 5 . | . . . . High Security . | . . . . Max Security . | . . . . Squads Dispatched . | . . . . Investigation . | . . . . Extermination . | . . . . Reinforcement . | . . . . Assault . | . . . . Garrison . | . . . . Intercept . | . . . . Searches Triggered . | . . . . Construction Impeded . | . . . . Haulers Reinforced . | . . . . Active Scanning Responses . | . . . . Cargo Convoy Interrupts . | . . . . Stealth | -11 -10 -10 -9 --------- Run | Yrd Mat Min Mat Distress Signals 3 | . 2 . 1 Communications Jammed . | . . . . Distress Signals . | . . . . Times Spotted 30 | . 14 5 11 Peak Tracking Total 8 | . 4 2 8 Tactical Retreats . | . . . . Traps | -11 -10 -10 -9 ------- Run | Yrd Mat Min Mat Traps Triggered 1 | . 1 . . Indirectly . | . . . . Trap Hack Attempts . | . . . . Triggered . | . . . . Disarmed . | . . . . Reprogrammed . | . . . . Reused . | . . . . Traps Extracted . | . . . . Installed . | . . . . Triggered . | . . . . Machines | -11 -10 -10 -9 ---------- Run | Yrd Mat Min Mat Machines Disabled . | . . . . Max in Single Turn . | . . . . Machines Repaired . | . . . . Machines Dismantled . | . . . . Machines Sabotaged . | . . . . Overloaded Fab Kills . | . . . . Hacking | -11 -10 -10 -9 --------- Run | Yrd Mat Min Mat Machines Accessed 2 | . 2 . . Terminals 2 | . 2 . . Fabricators . | . . . . Repair Stations . | . . . . Recycling Units . | . . . . Scanalyzers . | . . . . Garrison Access . | . . . . Total Hacks 4 | . 4 . . Successful 2 | . 2 . . Failed 2 | . 2 . . Catastrophic . | . . . . Database Lockouts . | . . . . Manual . | . . . . Terminals 4 | . 4 . . Fabricators . | . . . . Repair Stations . | . . . . Recycling Units . | . . . . Scanalyzers . | . . . . Garrison Access . | . . . . Terminal Hacks 2 | . 2 . . Level Access Points 1 | . 1 . . Hauler Manifests 1 | . 1 . . Fabricator Hacks . | . . . . Repair Station Hacks . | . . . . Recycling Unit Hacks . | . . . . Scanalyzer . | . . . . Garrison Access Hacks . | . . . . Unauthorized Hacks . | . . . . Terminals . | . . . . Fabricators . | . . . . Repair Stations . | . . . . Recycling Units . | . . . . Scanalyzers . | . . . . Garrison Access . | . . . . Data Cores Recovered . | . . . . Used . | . . . . Hacking Detections . | . . . . Full Trace Events . | . . . . Feedback Events . | . . . . Feedback Blocked . | . . . . Robot Schematics Acquired . | . . . . Robots Built . | . . . . Authchips . | . . . . Time . | . . . . Total Robot Build Rating . | . . . . Part Schematics Acquired . | . . . . Parts Built . | . . . . Authchips . | . . . . Time . | . . . . Total Part Build Rating . | . . . . Parts Repaired . | . . . . Time . | . . . . Parts Recycled . | . . . . Recycled Matter . | . . . . Retrieved Matter . | . . . . Retrieved Components . | . . . . Parts Scanalyzed . | . . . . Part Schematics Acquired . | . . . . Parts Damaged . | . . . . Bothacking | -11 -10 -10 -9 ------------ Run | Yrd Mat Min Mat Used RIF Installer . | . . . . Robots Hacked . | . . . . Non-combat . | . . . . Combat . | . . . . Robot Hacks Applied . | . . . . Relay Couplers Released . | . . . . Fabnet Peak Effective % . | . . . . Robots Rewired . | . . . . Allies Hacked . | . . . . Hacks Repelled . | . . . . Allies | -11 -10 -10 -9 -------- Run | Yrd Mat Min Mat Total Allies 3 | . . 3 . Largest Group 3 | . . 3 3 Highest-Rated Group 40 | . . 40 40 Highest-Rated Ally 16 | . . 16 16 Total Orders . | . . . . Ally Attacks 25 | . . . 25 Total Damage 279 | . . . 279 Kills 5 | . . . 5 Allies Corrupted . | . . . . Allies Melted . | . . . . Intel | -11 -10 -10 -9 ------- Run | Yrd Mat Min Mat Robot Analysis Total . | . . . . Derelict Logs Recovered 1 | . . 1 . Drone Launches . | . . . . Drone Recoveries . | . . . . Exploration | -11 -10 -10 -9 ------------- Run | Yrd Mat Min Mat Turns Passed 1827 | 68 760 764 235 Spaces Moved 1026 | 43 403 441 139 Core 10 | 10 . . . Treads 1016 | 33 403 441 139 Legs . | . . . . Wheels . | . . . . Hover . | . . . . Flight . | . . . . Fastest Speed 50 | 50 160 160 160 Average Speed 158 | 134 160 160 160 Slowest Speed 160 | 160 160 160 160 Overloaded Moves . | . . . . Propulsion Burnouts . | . . . . Robots Hopped . | . . . . Cave-ins Triggered . | . . . . Exploration Rate (%) 42 | 4 69 79 19 Regions Visited 3 Branch Regions 1 Pre-discovered Areas . | . . . . Known Exits Taken 2 | . 1 1 . Unknown Exits Taken 1 | 1 . . . Scrap Searched 2 | . . 2 . Spaces Dug . | . . . . Terrain Destroyed . | . . . . Melee . | . . . . Projectile . | . . . . AOE . | . . . . Terrain Rammed . | . . . . Walls Destroyed . | . . . . Machines Disabled . | . . . . Actions | -11 -10 -10 -9 --------- Run | Yrd Mat Min Mat Total 1145 | 53 462 479 151 Wait 41 | . 15 22 4 Move 1023 | 42 402 440 139 Hop . | . . . . Pick Up 23 | 5 13 3 2 Fast Attach 1 | 1 . . . Attach 8 | 5 1 . 2 Detach . | . . . . Swap 6 | . 2 2 2 Drop 5 | . 1 2 2 Fire 38 | . 28 10 . Melee . | . . . . Ram . | . . . . Kick . | . . . . Crush . | . . . . Escape Stasis . | . . . . Rewire . | . . . . Trap . | . . . . Miscellaneous . | . . . . Route ------- -11/Scrapyard -10/Materials (discovered 4 exits: *Mat x3 / *Min) -10/Mines (discovered 3 exits: *Mat x2 / [*Exi]) -9/Materials History --------- Turn | Location | Event 26 | -11/Scrapyard | Discovered new exit (range 15) 69 | -11/Scrapyard | Entered Materials 136 | -10/Materials | Identified exit to Materials 317 | -10/Materials | Build established: Mutant 761 | -10/Materials | Discovered new exit (range 16) 787 | -10/Materials | Identified exit to Mines 829 | -10/Materials | Entered Mines 845 | -10/Mines | Met a Derelict bent on vengeance 1061 | -10/Mines | Deemed a non-threat by the Exiles lab entrance 1062 | -10/Mines | Discovered new exit (range 5) 1160 | -10/Mines | Discovered exit to Materials (range 14) 1384 | -10/Mines | Found a damaged Exp. Sensor Array with a note attached 1396 | -10/Mines | Found Prototype Device 1485 | -10/Mines | Found a hidden stash of uninstalled traps 1502 | -10/Mines | Learned Materials security intel 1521 | -10/Mines | Discovered exit to Materials (range 8) 1556 | -10/Mines | Assisted by bots powering up and referring to "LRC-V3" 1593 | -10/Mines | Entered Materials 1593 | -9/Materials | Accompanied by 3 allies 1593 | -9/Materials | Evolved 2 slots: Utility x2 1828 | -9/Materials | Self-destructed Last Messages --------------- 01556_ Trooper 1b: "Hello LRC-V3. What is your command?" 01591_ Dropped Lgt. Treads. PARAMETERS=UTILITY+2 LOCATION=MATERIALS GOAL=ESCAPE Loading Materials security intel (x10)... 01613_ Dropped Hammer. 01618_ Acquired Mace. 01667_ K-01 Serf cleans the Electrolysis Chamber. 01671_ K-01 Serf collects debris. 01806_ Mercenary 1a destroyed. 01807_ Acquired 20 matter. 01809_ K-01 Serf collects debris. 01810_ G-34 Mercenary destroyed. 01812_ L-31 Rogue destroyed. 01814_ C-30 ARC bursts open, deploying its payload. 01814_ G-34 Mercenary unfolds itself. 01817_ G-34 Mercenary destroyed. 01823_ Dropped Assault Rifle. Map ----- +----------------------------------------------------+ | ??????????????????????????# # """#??? | | ??????????????????????????# # R"#??? | | ??????????????????????????#"" # """#??? | | ??????????????????????????#"T / #??? | | ??????????????????????????#"" # #??? | | ??????????????????????????# """ ##########? | | ??????????????????????????# """ # #? | | ?????????????????????????## """ # #? | | ??????????????????????? + """ #? | | ??????????????????????? # """ #? | | ??????????????????????? # """ #? | | ????????????????????????############ ##] #? | | ?????????????????????? ????????????# #########? | | ???????????????????### #???????????# # """ #?? | | ???????????????????# ???????????# + "R" #?? | | ???????????????????# ??????????# # " " #?? | | ???????????????????? ??????????# # #?? | | ???????????????????? ??????????# # #?? | | ???????????????????? ??????????# # #?? | | ????????????????????# #??????????# ########?? | | ????????????????????# #??????????# #????????? | | ????????????????????# #??????????# #????????? | | ????????????????????# #########??# #????????? | | ????????????????????# # #??# #####????? | | ????????????????????# # #??# #?#### | | ????????????????????# #@ #??# #? | | ????????????????????# + #??# """ ## | | ????????????????????# # #??# "T" + | | ???????????????????## #########??# # """ | | ?????????# ##### = ########### # """ | | ??????? !%* # """ | | ???????? T% = T + | | ????????? *% %/ # """ | | ????????## %#####= ##+############# # """ | | ?????????## ?????####### """ ##!! # """ | | ??????????# ????????????# """"" ##!! + | | ?????????????????????????# """"" ??#!! ###### = | | ?????????????????????????# """"" ??#!! ?????##### | | ?????????????????????????# """ ??#!! ?????????? | | ?????????????????????????# ???#!!??????????? | | ?????????????????????????# ??###??????????? | | ?????????????????????????# [ ???????????????? | | ?????????????????????????##########??????????????? | | ?????????????????????????????????????????????????? | | ?????????????????????????????????????????????????? | | ?????????????????????????????????????????????????? | | ?????????????????????????????????????????????????? | | ?????????????????????????????????????????????????? | | ?????????????????????????????????????????????????? | | ?????????????????????????????????????????????????? | +----------------------------------------------------+ Best States ------------- Heat Dissipation 42 Energy Generation 10 Energy Capacity 250 Matter Stores 300 Matter Capacity 300 Sight Range 16 Terrain Scan Density 10 Resistance: KI 20 Resistance: TH 20 Resistance: EX 20 Resistance: EM 20 Resistance: I 20 Resistance: S 20 Resistance: P 20 Evasion (%) 50 Recoil Reduction 2 Offensive Hacking 10 Item Schematics ----------------- None Robot Schematics ------------------ None Fabricated ------------ Nothing Alien Tech Used ----------------- None Achievements -------------- None Challenges ------------ None Game ------ Seed HeatSegregatorRecalibrator Manual? 0 Play Time 00:08:53 Cumulative 211.6 hours Start 2024.08.19 @ 18:16:04 End 2024.08.19 @ 18:23:22 Sessions 1 Manual Loads 0 Difficulty Adventurer Special Mode None Game No. 318 Rogue 241 Adventurer 77 Explorer 0 Win Type - Total 5 Types 2/1/0/2/0/0/0/0/0 Lore% 41 Gallery% 59 Achievement% 57 Wizard Run 0 Options --------- Layout 1 ASCII 0 Keyboard 0 Movement Arrows Keybinds 0 Fullscreen 1 Font 16/SmallcapsGlow Map View 55x38 Zoom Use 0% Tactical HUD 1 Map Filters NONE Filters NONE Steam 1 RUN: 07eed488-b940-4f8d-ac04-e7ac55d7c28d